bitfinex/quotes_ETHUSD_20220212
["timestamp","ask_amount","ask_price","bid_price","bid_amount"]
[1644705204045,1.46951749,2903.9,2902.9,2.90348689]
[1644705204287,0.00371775,2903.5,2902.9,23.16348689]
[1644705204492,1.46579974,2903.8,2903.1,0.01014463]
[1644705204493,0.01014344,2903.4,2903.1,0.01014463]
[1644705204689,0.01014344,2903.4,2903.3,0.86071]
[1644705204890,0.01014344,2903.4,2903.3,2.22241]
[1644705205092,0.01014344,2903.4,2903.3,2.39450129]
[1644705205292,0.01014344,2903.4,2903.3,3.58970129]
[1644705205495,0.007,2904.0,2903.3,4.58970129]
[1644705205792,1.4656605,2903.9,2903.3,4.95926689]
[1644705205992,0.00371775,2903.8,2903.3,4.95926689]
[1644705206192,0.00371775,2903.8,2903.4,0.3]
[1644705206393,0.00371775,2903.8,2903.5,0.501]
[1644705206592,0.00371775,2903.8,2903.5,0.67309129]
[1644705206794,0.00371775,2903.8,2903.6,0.17209129]
[1644705206999,1.4656605,2903.9,2903.6,0.17209129]
[1644705207000,1.4656605,2903.9,2903.6,0.67309129]
[1644705207196,0.00371775,2903.8,2903.6,0.97309129]
[1644705207397,0.007,2904.0,2903.8,0.86046]
[1644705207597,0.007,2904.0,2903.9,0.501]
[1644705207796,0.007,2904.0,2903.9,0.74265689]
[1644705208048,0.007,2904.0,2903.9,0.91475689]
[1644705208639,0.007,2904.0,2903.9,1.91475689]
[1644705209039,0.007,2904.0,2903.9,2.21475689]
[1644705209241,0.0037188,2904.9,2903.9,2.51475689]
[1644705209543,0.0037188,2904.9,2904.0,25.59052273]
[1644705209544,0.01013515,2904.1,2904.0,25.59052273]
[1644705209740,0.01013515,2904.1,2904.0,22.03515689]
[1644705209941,0.01013515,2904.1,2904.0,23.03515689]
[1644705210341,0.0037188,2904.9,2904.0,23.03515689]
[1644705210542,5.0,2905.0,2904.1,21.26]
[1644705210543,4.30438788,2905.0,2904.1,21.26]
[1644705210742,4.30438788,2905.0,2904.2,2.22188]
[1644705211791,4.30438788,2905.0,2904.6,0.96351722]
[1644705212897,4.30438788,2905.0,2904.6,1.03308282]
[1644705213596,3.30438788,2905.0,2904.7,0.501]
[1644705213796,3.30438788,2905.0,2904.7,0.5705656]
[1644705214198,0.00671331,2904.9,2904.7,0.5705656]
[1644705215196,3.30438788,2905.0,2904.7,0.5705656]
[1644705215639,0.01013415,2904.9,2904.7,0.8705656]
[1644705216340,3.30438788,2905.0,2904.7,0.8705656]
[1644705216641,0.01013415,2904.9,2904.7,0.8705656]
[1644705216843,0.01013415,2904.9,2904.8,0.00219019]
[1644705217042,0.01013415,2904.9,2904.8,0.50319019]
[1644705217448,3.30438788,2905.0,2904.8,0.50319019]
[1644705217844,3.31452197,2905.0,2904.8,0.57275579]
[1644705218244,3.31452197,2905.0,2904.8,0.74484708]
[1644705218645,3.30438788,2905.0,2904.8,0.74484708]
[1644705219145,3.31452192,2905.0,2904.8,0.74484708]
[1644705219391,3.31452192,2905.0,2904.8,0.22413429]
[1644705219592,3.31452192,2905.0,2904.8,0.0347828]
[1644705219795,3.31452192,2905.0,2904.9,0.17209129]
[1644705219996,3.30438788,2905.0,2904.9,0.17209129]
[1644705220193,3.35487998,2905.0,2904.9,0.17209129]
[1644705221195,3.34474594,2905.0,2904.9,0.17209129]
[1644705221899,3.34474594,2905.0,2904.9,0.20687409]
[1644705222101,3.34474594,2905.0,2904.9,0.20906526]
[1644705222300,3.34474594,2905.0,2904.9,0.03697397]
[1644705224740,3.29474594,2905.0,2904.9,0.03697397]
[1644705228500,3.29474594,2905.0,2904.9,0.53797397]
[1644705228699,3.29474594,2905.0,2904.9,0.83797397]
[1644705228898,3.29474594,2905.0,2904.9,1.01006526]
[1644705229099,3.29474594,2905.0,2904.9,1.31006526]
[1644705229499,3.29474594,2905.0,2904.9,1.33060134]
[1644705230302,3.29474594,2905.0,2904.9,2.33060134]
[1644705231742,3.29474594,2905.0,2904.9,6.40979847]
[1644705231944,3.29474594,2905.0,2904.9,2.47279893]
[1644705232143,3.29474594,2905.0,2904.9,2.17279893]
[1644705232344,3.29474594,2905.0,2904.9,3.33307893]
[1644705232545,3.29474594,2905.0,2904.9,3.20517893]
[1644705232947,3.29474594,2905.0,2904.9,3.50517893]
[1644705235295,3.29474594,2905.0,2904.9,23.76517893]
[1644705235499,3.29474594,2905.0,2904.9,3.50517893]
[1644705235896,3.29474594,2905.0,2904.9,23.76517893]
[1644705236097,3.29474594,2905.0,2904.9,3.50517893]
[1644705237101,3.29474594,2905.0,2904.9,1.90517893]
[1644705237501,3.29474594,2905.0,2904.9,1.59089005]
[1644705238154,3.29474594,2905.0,2904.9,5.09089005]
[1644705238552,3.29474594,2905.0,2904.9,6.69089005]
[1644705238953,3.29474594,2905.0,2904.9,6.51879005]
[1644705241662,3.11499132,2905.0,2904.9,6.51879005]
[1644705241896,3.11499132,2905.0,2904.9,6.69088134]
[1644705242093,3.11499132,2905.0,2904.9,3.19088134]
[1644705242895,3.01499132,2905.0,2904.9,3.19088134]
[1644705243697,2.39598134,2905.0,2904.9,3.19088134]
[1644705245398,2.39598134,2905.0,2904.9,3.14088134]
[1644705248758,2.39598134,2905.0,2904.9,2.28060134]
[1644705249405,0.01015483,2905.1,2905.0,0.89876151]
[1644705249604,0.00372453,2905.4,2905.0,8.83796151]
[1644705249902,0.00372453,2906.2,2905.1,6.258]
[1644705250103,2.60381051,2906.3,2905.2,2.22131]
[1644705250403,1.46812511,2906.2,2905.2,4.02818409]
[1644705250603,1.46812511,2906.2,2905.3,0.17209129]
[1644705250804,1.46812511,2906.2,2905.4,0.501]
[1644705251205,1.46812511,2906.2,2905.4,1.00787409]
[1644705251403,0.0067057,2905.9,2905.4,1.00787409]
[1644705252007,0.0067057,2905.9,2905.4,1.30787409]
[1644705252207,0.0067057,2905.9,2905.4,1.00787409]
[1644705252408,0.00373913,2906.5,2905.4,0.8357828]
[1644705252608,0.010154,2905.8,2905.4,0.8357828]
[1644705253653,0.66363587,2906.5,2905.4,0.8357828]
[1644705253852,0.01015406,2905.7,2905.4,0.8357828]
[1644705254053,0.0007642,2906.2,2905.4,1.35012603]
[1644705254452,0.0007642,2906.2,2905.4,1.05012603]
[1644705254453,1.46515822,2906.2,2905.4,1.05012603]
[1644705254652,1.46515822,2906.2,2905.0,2.07896151]
[1644705254653,0.51203173,2905.3,2905.0,2.07896151]
[1644705254851,0.51203173,2905.3,2905.1,1.36128]
[1644705255052,0.51203173,2905.3,2905.1,1.31128]
[1644705256455,0.51203173,2905.3,2905.1,6.31128]
[1644705256653,0.51203173,2905.3,2905.2,4.07507776]
[1644705256898,0.51203173,2905.3,2905.2,6.93109129]
[1644705257102,0.51203173,2905.3,2905.2,8.53109129]
[1644705257297,0.51203173,2905.3,2905.2,12.37081968]
[1644705257498,0.51203173,2905.3,2905.2,8.53109129]
[1644705258998,0.51203173,2905.3,2905.2,28.79109129]
[1644705259599,0.51203173,2905.3,2905.2,29.10538017]
[1644705260646,0.51203173,2905.3,2905.2,28.93328888]
[1644705261148,0.51203173,2905.3,2905.2,8.67328888]
[1644705261544,0.51203173,2905.3,2905.2,28.93328888]
[1644705261745,0.51203173,2905.3,2905.2,28.93526303]
[1644705262149,0.51203173,2905.3,2905.2,8.67526303]
[1644705262351,0.51203173,2905.3,2905.2,32.43526303]
[1644705262951,0.51203173,2905.3,2905.2,12.17526303]
[1644705263454,1.86299674,2906.7,2905.6,1.72]
[1644705263455,0.00962126,2906.3,2905.6,1.72]
[1644705263652,1.46417716,2906.2,2905.7,0.501]
[1644705263855,1.46417716,2906.2,2905.8,1.71995]
[1644705263856,0.00373913,2906.1,2905.8,1.71995]
[1644705264052,0.00373913,2906.1,2905.9,0.501]
[1644705264292,1.46417716,2906.2,2905.9,0.501]
[1644705264493,0.00373913,2906.1,2905.9,1.501]
[1644705264692,0.00962287,2906.3,2906.0,0.85988]
[1644705264892,1.46406241,2906.2,2906.1,1.36087]
[1644705265092,1.46406241,2906.2,2906.1,1.96087]
[1644705265793,1.46406241,2906.2,2906.1,2.96087]
[1644705265993,1.46406241,2906.2,2906.1,1.66087]
[1644705266192,1.46406241,2906.2,2906.1,2.66087]
[1644705266592,1.46406241,2906.2,2906.1,2.51087]
[1644705266794,1.46406241,2906.2,2906.1,1.51087]
[1644705266997,0.00962068,2906.3,2906.1,2.51087]
[1644705267196,1.46406241,2906.2,2906.1,2.51087]
[1644705267798,0.00962068,2906.3,2906.1,2.51087]
[1644705268057,0.66363587,2907.0,2906.1,2.51087]
[1644705268248,0.00962068,2906.3,2906.1,1.51087]
[1644705268449,1.46404308,2906.2,2906.1,1.51087]
[1644705269248,0.65989674,2906.9,2906.1,1.51087]
[1644705269452,0.00962068,2906.3,2906.1,1.51087]
[1644705269649,1.46406617,2906.2,2906.1,1.36087]
[1644705269849,1.50083543,2906.2,2906.1,1.36087]
[1644705270750,1.50083543,2906.2,2906.1,2.36087]
[1644705270950,1.50083543,2906.2,2906.1,1.36087]
[1644705271150,1.50083543,2906.2,2906.1,2.36087]
[1644705271350,1.50083543,2906.2,2906.1,2.66087]
[1644705273429,1.50075871,2906.2,2906.1,2.66087]
[1644705273830,1.50075871,2906.2,2906.1,2.56087]
[1644705274031,0.03676926,2906.2,2906.1,2.56087]
[1644705274530,0.03676926,2906.2,2906.1,2.73296129]
[1644705274531,1.50076145,2906.2,2906.1,2.73296129]
[1644705276551,1.45076145,2906.2,2906.1,2.73296129]
[1644705276752,0.00962083,2906.3,2906.1,2.73296129]
[1644705277554,0.00373913,2906.8,2906.1,2.73296129]
[1644705277755,0.00373913,2906.8,2906.3,1.71966]
[1644705277957,0.00373913,2906.8,2906.4,0.501]
[1644705278157,0.00373913,2906.8,2906.3,2.87747]
[1644705278356,0.65989674,2907.0,2906.4,0.501]
[1644705278557,0.00373913,2906.9,2906.4,0.501]
[1644705278758,0.00373913,2906.9,2906.5,0.31428888]
[1644705278957,0.00962044,2906.8,2906.6,0.501]
[1644705279996,0.00373913,2906.9,2906.6,0.501]
[1644705280195,0.00962044,2906.8,2906.6,0.501]
[1644705281197,0.65989674,2907.1,2906.6,0.501]
[1644705281396,0.0096204,2906.8,2906.6,0.501]
[1644705282003,0.0096204,2906.8,2906.6,1.36082]
[1644705282403,0.00373913,2906.9,2906.6,1.36082]
[1644705282602,0.0096204,2906.8,2906.6,1.36082]
[1644705283644,0.00373913,2906.9,2906.6,1.36082]
[1644705283843,0.0096204,2906.8,2906.6,1.36082]
[1644705284851,0.00373913,2906.9,2906.6,1.36082]
[1644705285052,0.00373913,2906.9,2906.6,1.38235896]
[1644705285053,0.0096204,2906.8,2906.6,1.38235896]
[1644705285452,0.0096204,2906.8,2906.6,0.52253896]
[1644705285852,0.0096204,2906.8,2906.6,1.38235896]
[1644705286052,0.00373913,2907.2,2906.6,1.38235896]
[1644705286253,0.0096204,2906.8,2906.6,0.52253896]
[1644705287202,0.00373913,2907.2,2906.6,0.52253896]
[1644705287600,0.0096204,2906.8,2906.6,0.52253896]
[1644705288001,0.0096204,2906.8,2906.6,1.38235896]
[1644705288401,0.00373913,2907.3,2906.6,1.38235896]
[1644705288601,0.00980078,2906.8,2906.6,1.38235896]
[1644705289601,0.00373913,2907.3,2906.6,1.38235896]
[1644705289803,0.00980078,2906.8,2906.6,0.69443896]
[1644705290842,0.10373913,2907.3,2906.6,0.69443896]
[1644705291043,0.00980078,2906.8,2906.6,0.69443896]
[1644705292047,0.65972414,2907.2,2906.6,0.69443896]
[1644705292247,0.00960822,2906.8,2906.6,0.69443896]
[1644705292850,0.61933236,2907.2,2906.6,0.69443896]
[1644705294050,0.61933236,2907.2,2906.6,0.52253896]
[1644705294292,0.00373913,2907.2,2906.6,0.52253896]
[1644705294493,0.10373913,2907.3,2906.6,0.52253896]
[1644705295693,0.10373913,2907.3,2906.6,0.69443896]
[1644705296296,0.10373913,2907.3,2906.6,0.52253896]
[1644705296297,0.1,2907.3,2906.6,0.52253896]
[1644705296494,1.46749345,2907.2,2906.6,0.52253896]
[1644705296694,1.46375432,2907.2,2906.8,0.00196301]
[1644705296897,0.00373913,2907.1,2906.8,0.00196301]
[1644705297098,0.01389157,2907.1,2906.8,0.00196301]
[1644705297299,1.46375432,2907.0,2906.8,0.00196301]
[1644705298142,0.00392601,2906.7,2906.6,0.52253896]
[1644705298741,1.47141946,2906.7,2906.6,0.52253896]
[1644705298940,1.46768033,2906.7,2906.6,0.52253896]
[1644705301641,1.46768033,2906.7,2906.6,0.47253896]
[1644705304927,1.46768033,2906.7,2906.6,0.49387872]
[1644705305127,1.46768033,2906.7,2906.6,0.44387872]
[1644705308750,1.46768033,2906.7,2906.6,0.74387872]
[1644705310004,0.05749176,2906.7,2906.6,0.74387872]
[1644705311606,0.05749176,2906.7,2906.6,0.74787872]
[1644705314044,0.05749176,2906.7,2906.6,0.44787872]
[1644705314748,0.05749176,2906.7,2906.6,0.74787872]
[1644705314949,1.52108857,2906.7,2906.6,0.44787872]
[1644705316150,1.52109373,2906.7,2906.6,0.44787872]
[1644705316996,1.51914378,2906.7,2906.6,0.44787872]
[1644705317997,1.51914378,2906.7,2906.6,0.39787872]
[1644705318197,1.51914378,2906.7,2906.6,0.69989883]
[1644705320098,1.51917035,2906.7,2906.6,0.69989883]
[1644705320298,0.05554181,2906.7,2906.6,0.69989883]
[1644705322154,0.05554181,2906.7,2906.6,0.64989883]
[1644705323159,0.05554181,2906.7,2906.6,0.94989883]
[1644705323355,0.05554181,2906.7,2906.6,0.64989883]
[1644705326401,0.05554181,2906.7,2906.6,0.54989883]
[1644705326799,0.05554181,2906.7,2906.6,0.72199012]
[1644705327400,0.05554181,2906.7,2906.6,1.02199012]
[1644705328445,0.05554181,2906.7,2906.6,0.84989883]
[1644705329846,0.05554181,2906.7,2906.6,1.84989883]
[1644705331450,0.05554181,2906.7,2906.6,0.84989883]
[1644705331899,0.05554181,2906.7,2906.6,21.10989883]
[1644705332300,0.05554181,2906.7,2906.6,1.84989883]
[1644705332702,0.05554181,2906.7,2906.6,21.10989883]
[1644705332902,0.05554181,2906.7,2906.6,1.84989883]
[1644705333102,0.05554181,2906.7,2906.6,0.84989883]
[1644705333303,0.05554181,2906.7,2906.6,1.84989883]
[1644705333703,0.05554181,2906.7,2906.6,0.84989883]
[1644705333904,0.01015228,2906.9,2906.6,0.84989883]
[1644705334103,1.4636016,2906.8,2906.6,0.84989883]
[1644705334406,0.01015228,2906.9,2906.6,0.84989883]
[1644705334603,1.46359762,2906.8,2906.6,0.84989883]
[1644705335004,0.05307826,2906.7,2906.6,0.84989883]
[1644705335205,0.10373913,2907.3,2906.6,0.84989883]
[1644705335404,0.01015239,2906.9,2906.8,1.71934]
[1644705335648,0.01015239,2906.9,2906.8,2.22034]
[1644705335848,0.01015239,2907.3,2906.8,3.52236011]
[1644705336050,0.01015239,2907.3,2906.8,2.52236011]
[1644705336247,0.01015239,2907.3,2907.0,0.85965]
[1644705337252,0.01015239,2907.3,2907.0,1.36065]
[1644705337753,0.02030459,2907.3,2907.0,1.36065]
[1644705338753,0.01015239,2907.3,2907.0,1.36065]
[1644705338954,0.01015239,2907.3,2907.1,0.30202011]
[1644705339155,0.01614101,2907.3,2907.1,0.30202011]
[1644705340000,0.01015239,2907.3,2907.1,0.32730247]
[1644705340199,0.01614101,2907.3,2907.1,0.32730247]
[1644705341205,0.01015239,2907.3,2907.1,0.32730247]
[1644705341407,0.01614101,2907.3,2907.1,0.32730247]
[1644705342008,0.01614101,2907.3,2907.2,0.00176567]
[1644705342408,0.01015239,2907.3,2907.2,0.30378578]
[1644705347904,0.01015239,2907.3,2907.2,0.30778578]
[1644705355904,1.47368018,2907.3,2907.2,0.30778578]
[1644705358149,1.47368018,2907.3,2907.2,0.25778578]
[1644705358351,1.47368018,2907.3,2907.2,0.29222938]
[1644705362106,1.47368018,2907.3,2907.2,0.29382806]
[1644705362707,1.47368018,2907.3,2907.2,1.15347806]
[1644705365408,0.01015239,2907.3,2907.2,1.15347806]
[1644705367053,0.01015239,2907.3,2907.2,1.05347806]
[1644705370311,0.01015239,2907.3,2907.2,1.55447806]
[1644705372512,0.01183795,2907.3,2907.2,1.55590998]
[1644705374960,0.00357708,2907.7,2907.2,1.55590998]
[1644705375162,1.30523937,2907.7,2907.2,1.55590998]
[1644705375360,3.5,2908.1,2907.2,1.72800127]
[1644705375361,0.00380211,2908.0,2907.2,1.72800127]
[1644705376161,0.00380211,2908.1,2907.3,0.1719]
[1644705376364,0.00380211,2908.1,2907.4,0.501]
[1644705376562,0.00380211,2908.1,2907.4,0.67309129]
[1644705376806,0.00380211,2908.1,2907.5,0.17209129]
[1644705377010,0.00380211,2908.2,2907.6,0.501]
[1644705377410,0.00380211,2908.2,2907.6,0.5354436]
[1644705377612,0.0062511,2907.9,2907.6,0.5354436]
[1644705378411,0.00380211,2908.6,2907.6,0.5354436]
[1644705378913,0.00980217,2907.9,2907.6,0.54524692]
[1644705379312,0.00980217,2907.9,2907.7,0.85949]
[1644705379512,0.00380211,2908.6,2907.8,0.501]
[1644705379912,0.00380211,2908.6,2907.8,0.65638446]
[1644705380113,0.00623272,2907.9,2907.8,0.65638446]
[1644705380311,0.00623272,2907.9,2907.8,1.51568446]
[1644705380569,0.00623272,2907.9,2907.8,1.55012806]
[1644705380970,0.00380211,2908.6,2907.8,1.55012806]
[1644705381173,0.00380211,2908.6,2907.9,0.1719]
[1644705381377,0.00380211,2908.6,2908.0,0.501]
[1644705381577,1.08800211,2908.8,2908.0,0.5354436]
[1644705381774,5.8588,2908.9,2908.0,0.5354436]
[1644705381974,5.8088,2908.9,2908.0,0.5354436]
[1644705382175,5.8088,2908.9,2908.2,0.85936]
[1644705382373,5.8088,2908.9,2908.2,1.36036]
[1644705382574,5.8088,2908.9,2908.2,1.3948036]
[1644705382975,5.8088,2908.9,2908.3,0.15538446]
[1644705383376,3.40616621,2908.8,2908.3,0.15538446]
[1644705383579,5.8088,2908.9,2908.3,0.18982806]
[1644705383580,0.01020101,2908.7,2908.3,0.18982806]
[1644705383777,5.8088,2908.9,2908.3,0.18982806]
[1644705383778,5.76900101,2908.9,2908.3,0.18982806]
[1644705386811,5.76900101,2908.9,2908.4,0.00143031]
[1644705387409,5.76900101,2908.9,2908.5,0.15538446]
[1644705387709,5.76900101,2908.9,2908.5,0.18982806]
[1644705387909,5.76900101,2908.9,2908.5,0.69082806]
[1644705388351,0.01020088,2908.8,2908.5,0.69082806]
[1644705389354,5.76900101,2908.9,2908.5,0.69082806]
[1644705389552,0.01020077,2908.8,2908.5,0.69082806]
[1644705389754,0.01020077,2908.8,2908.5,0.71609862]
[1644705390555,0.00381388,2908.8,2908.5,0.71609862]
[1644705390753,0.01401465,2908.8,2908.5,0.71609862]
[1644705391803,0.00381388,2908.8,2908.7,0.0014352]
[1644705392010,0.00287039,2908.6,2908.5,0.71609862]
[1644705392209,0.00287039,2908.6,2908.5,0.56071416]
[1644705392408,0.00287039,2908.6,2908.5,0.71609862]
[1644705394612,0.01042594,2908.8,2908.5,0.71609862]
[1644705394910,0.61900101,2908.9,2908.6,0.8591]
[1644705395108,0.61900101,2908.9,2908.7,0.501]
[1644705395309,0.61900101,2908.9,2908.8,0.1718]
[1644705395571,1.01e-06,2908.9,2908.8,0.6728]
[1644705395760,5.0,2909.9,2908.8,8.57497575]
[1644705395761,1.46254833,2909.8,2908.8,8.57497575]
[1644705395959,1.46254833,2909.8,2909.1,0.85899]
[1644705396159,1.46254833,2909.8,2909.2,0.6728]
[1644705396561,0.00381985,2909.7,2909.2,0.6728]
[1644705396762,0.01020495,2909.6,2909.2,0.501]
[1644705397164,1.462523,2909.5,2909.2,0.501]
[1644705397361,0.00381985,2909.4,2909.3,0.1718]
[1644705397562,0.01020495,2909.6,2909.3,0.6728]
[1644705397764,0.00381985,2910.2,2909.3,0.98708888]
[1644705397963,1.46244052,2910.4,2909.5,0.85893]
[1644705398163,0.04081441,2909.9,2909.5,1.03073]
[1644705398463,1.46244052,2909.8,2909.6,2.21867]
[1644705398862,1.46244052,2909.8,2909.6,0.15538446]
[1644705399063,0.65636146,2910.2,2909.6,0.15538446]
[1644705399301,0.0102047,2909.8,2909.6,0.15538446]
[1644705400101,0.00381985,2910.2,2909.6,0.15538446]
[1644705400501,0.00381985,2910.2,2909.6,0.65638446]
[1644705400502,0.0102047,2909.8,2909.6,0.65638446]
[1644705401402,0.65643155,2910.4,2909.6,0.65638446]
[1644705401608,0.0102047,2909.8,2909.6,0.65638446]
[1644705401808,0.01154423,2909.8,2909.6,0.65767102]
[1644705402610,0.00133953,2909.8,2909.6,0.65767102]
[1644705402810,0.01154423,2909.8,2909.6,0.65767102]
[1644705403068,0.01154423,2909.8,2909.6,0.66167102]
[1644705403261,0.6049686,2910.5,2909.6,0.66167102]
[1644705403461,0.00381985,2910.3,2909.6,0.66167102]
[1644705403861,0.00381985,2910.3,2909.7,3.5]
[1644705404062,0.00381985,2910.3,2909.6,0.66167102]
[1644705404264,0.1718,2910.4,2909.6,0.66167102]
[1644705404565,0.00381985,2910.3,2909.6,0.66167102]
[1644705404766,0.00381985,2910.3,2909.7,0.02525975]
[1644705405164,0.00381985,2910.3,2909.8,0.16558987]
[1644705406168,0.00381985,2910.3,2909.8,0.15538446]
[1644705406369,0.00381985,2910.3,2909.9,0.01020529]
[1644705406569,0.00381985,2910.3,2910.0,0.501]
[1644705407008,0.01180027,2910.4,2909.9,0.01020529]
[1644705407411,0.00159688,2910.4,2909.8,0.1566707]
[1644705407610,0.0118005,2910.4,2910.0,0.01020516]
[1644705408210,0.0118005,2910.4,2910.1,0.15538446]
[1644705408610,0.00159688,2910.4,2910.1,0.15538446]
[1644705408810,0.01180072,2910.4,2910.1,0.1655895]
[1644705409812,0.00159688,2910.4,2910.1,0.15538446]
[1644705410015,0.10816418,2910.4,2910.1,0.15538446]
[1644705410955,0.10159688,2910.4,2910.1,0.15538446]
[1644705411156,0.10816418,2910.4,2910.1,0.15538446]
[1644705411962,0.51510427,2909.8,2909.7,0.501]
[1644705413963,0.51510427,2909.8,2909.7,1.35985]
[1644705416208,0.51510427,2909.8,2909.7,0.501]
[1644705416406,0.46510427,2909.8,2909.7,0.501]
[1644705416607,0.46510427,2909.8,2909.7,0.451]
[1644705417013,0.46643805,2909.8,2909.7,0.451]
[1644705418268,0.46643805,2909.8,2909.7,1.30987]
[1644705418669,0.46643805,2909.8,2909.7,0.451]
[1644705419872,0.46643805,2909.8,2909.7,1.30986]
[1644705420074,0.46643805,2909.8,2909.7,1.33357973]
[1644705420672,0.46643805,2909.8,2909.7,1.63357973]
[1644705421072,0.46643805,2909.8,2909.7,0.77471973]
[1644705423514,0.46643805,2909.8,2909.7,0.47471973]
[1644705423813,0.46643805,2909.8,2909.7,1.33356973]
[1644705424617,2.27e-05,2910.4,2910.0,20.26]
[1644705424823,2.19365789,2912.9,2911.7,0.66470489]
[1644705424824,0.86956802,2912.0,2911.7,0.66470489]
[1644705425017,1.30403974,2913.0,2911.9,6.27047876]
[1644705425216,0.86927892,2913.8,2912.6,0.3]
[1644705425421,3.93279393,2914.3,2913.7,6.258]
[1644705425422,0.86898906,2914.0,2913.7,6.258]
[1644705425699,1.73913604,2914.6,2913.8,0.501]
[1644705425700,1.46078814,2913.9,2913.8,0.501]
[1644705425894,0.05115812,2914.0,2913.9,6.258]
[1644705426091,2.75374161,2915.6,2913.8,0.73422058]
[1644705426092,3.51730573,2915.0,2913.8,0.73422058]
[1644705426291,3.51730573,2915.0,2913.7,0.17209129]
[1644705426292,1.46059581,2914.9,2913.9,1.23522058]
[1644705426493,1.46059581,2914.9,2914.1,0.73422058]
[1644705426692,3.5,2914.8,2914.1,0.73422058]
[1644705426895,0.01730573,2915.0,2914.3,0.73422058]
[1644705427096,0.05513708,2914.7,2914.5,0.73422058]
[1644705427294,0.05513708,2914.7,2914.6,1.23522058]
[1644705427497,0.01730573,2915.0,2914.6,4.73522058]
[1644705427696,1.46030897,2914.9,2914.6,4.73522058]
[1644705427898,0.05627393,2914.9,2914.6,4.73522058]
[1644705428098,0.0101872,2914.8,2914.6,4.73522058]
[1644705428497,0.05513708,2914.7,2914.6,4.73522058]
[1644705431709,0.15513708,2914.7,2914.6,4.73522058]
[1644705431911,0.15681449,2914.7,2914.6,4.73522058]
[1644705432111,0.15681449,2914.7,2914.6,3.46825225]
[1644705432311,0.15681449,2914.7,2914.6,4.46825225]
[1644705432513,0.15681449,2914.7,2914.6,3.46825225]
[1644705433760,0.15681449,2914.7,2914.6,3.96925225]
[1644705434657,0.039173,2915.2,2914.9,0.2905]
[1644705434859,0.00396515,2916.1,2915.0,0.501]
[1644705435057,0.00396515,2916.1,2915.1,0.42869997]
[1644705435259,0.00396515,2916.1,2915.6,0.2905]
[1644705435462,0.00396515,2916.1,2915.8,0.2905]
[1644705435656,0.00396515,2916.1,2915.9,0.2905]
[1644705435856,0.00396515,2916.1,2916.0,0.501]
[1644705436055,0.00396515,2916.1,2916.0,0.7915]
[1644705436657,6.515e-05,2916.1,2916.0,0.7915]
[1644705436911,6.515e-05,2916.1,2916.0,2.01548017]
[1644705437109,6.515e-05,2916.1,2916.0,8.30468017]
[1644705437310,6.515e-05,2916.1,2916.0,9.48718017]
[1644705437511,6.515e-05,2916.1,2916.0,9.47518017]
[1644705437712,6.515e-05,2916.1,2916.0,9.19038017]
[1644705437911,0.01019804,2916.2,2916.1,0.6405]
[1644705437912,9.804e-05,2916.2,2916.1,0.6405]
[1644705438113,0.04078603,2916.6,2916.1,0.95478888]
[1644705438313,0.1713,2917.6,2916.1,8.95249129]
[1644705438512,5.0,2919.1,2916.5,6.258]
[1644705438513,0.00288749,2917.8,2916.5,6.258]
[1644705438712,0.1713,2918.7,2916.6,0.2905]
[1644705438915,0.30949997,2918.9,2916.6,1.9771]
[1644705439112,0.30949997,2918.9,2916.7,0.1624]
[1644705439113,5.0,2918.8,2916.7,0.1624]
[1644705439313,5.0,2918.8,2916.9,0.2905]
[1644705439314,0.1713,2918.7,2916.9,0.2905]
[1644705439512,0.1213,2918.7,2917.1,0.2905]
[1644705439812,0.4713,2918.8,2917.3,0.2905]
[1644705440012,0.01253234,2918.5,2917.3,0.2905]
[1644705440212,0.1713,2918.4,2917.3,0.2905]
[1644705440656,0.00385168,2918.3,2917.3,0.2905]
[1644705442561,0.01019577,2917.9,2917.7,0.01019679]
[1644705443560,0.00385168,2918.1,2917.4,0.2905]
[1644705443760,0.551,2919.4,2917.7,0.01019679]
[1644705443761,0.01019577,2917.9,2917.7,0.01019679]
[1644705444163,0.01019577,2917.9,2917.7,0.30069679]
[1644705444608,0.00385176,2918.5,2917.7,0.4209]
[1644705444808,0.00385176,2918.8,2917.7,0.4209]
[1644705445010,0.00385176,2918.8,2917.8,0.1368]
[1644705445011,0.01019577,2917.9,2917.8,0.1368]
[1644705445208,0.01019577,2917.9,2917.8,0.9299]
[1644705445410,0.01019577,2917.9,2917.8,1.24498888]
[1644705445608,0.01019577,2917.9,2917.8,1.24738888]
[1644705445809,0.30949997,2918.9,2917.8,1.24978888]
[1644705446013,0.13819997,2918.9,2917.8,1.24898888]
[1644705446312,0.01019571,2918.0,2917.9,0.1336]
[1644705446513,0.01019571,2918.0,2917.9,0.9219]
[1644705446716,0.01019571,2918.0,2917.9,0.9211]
[1644705446915,0.01019571,2918.0,2917.9,0.7915]
[1644705447115,0.13819997,2918.9,2917.9,0.7915]
[1644705447315,0.01019557,2918.1,2917.9,0.7915]
[1644705447915,0.01019557,2918.1,2918.0,0.1296]
[1644705448158,0.01019557,2918.1,2917.9,0.7915]
[1644705448359,0.1713,2918.8,2917.9,0.7915]
[1644705448561,0.00630731,2918.2,2917.9,0.7915]
[1644705448760,0.00630731,2918.2,2918.0,0.1288]
[1644705448960,0.00630731,2918.2,2918.0,0.1304]
[1644705449158,0.00630731,2918.2,2918.0,0.1312]
[1644705449361,0.00630731,2918.2,2918.0,0.1328]
[1644705449560,0.02908303,2918.7,2918.2,0.2905]
[1644705449561,0.00385794,2918.7,2918.2,0.2905]
[1644705449763,0.04465439,2918.7,2918.2,0.2905]
[1644705450061,0.04079645,2918.7,2918.3,0.2905]
[1644705450661,0.00385794,2918.8,2918.3,0.2905]
[1644705450860,0.01020011,2918.6,2918.3,0.2905]
[1644705451462,0.10225802,2918.9,2918.3,0.2905]
[1644705451662,0.05225802,2918.9,2918.0,0.4915]
[1644705451912,0.1713,2919.0,2918.1,0.00115928]
[1644705452109,6.01596339,2919.8,2917.7,0.1448]
[1644705452110,0.8578757,2917.8,2917.7,0.1472]
[1644705452308,0.8578757,2917.8,2917.4,1.98918994]
[1644705452508,0.8578757,2917.8,2917.6,0.501]
[1644705452709,0.8578757,2917.8,2917.7,0.85638]
[1644705452911,0.8578757,2917.8,2917.7,1.51818]
[1644705453109,0.8578757,2917.8,2917.7,1.51898]
[1644705453311,0.8578757,2917.8,2917.7,1.51338]
[1644705453508,0.8578757,2917.8,2917.7,1.51498]
[1644705453708,0.8578757,2917.8,2917.7,1.51418]
[1644705453909,0.8578757,2917.8,2917.7,1.51498]
[1644705454110,0.8578757,2917.8,2917.7,0.50938]
[1644705454312,0.8578757,2917.8,2917.7,0.68707129]
[1644705454515,0.8578757,2917.8,2917.7,0.68147129]
[1644705454712,0.8578757,2917.8,2917.7,0.68067129]